Cogmind - Beta 10.2 @@@ ROGUE MODE // 2021.12.14 @ 00:22:49 Player: debl Result: Destroyed by Y-45 Defender with Beam Rifle Performance ------------- Evolutions (2) 1000 Regions Visited (7) 1400 Robots Destroyed (7) 35 Value Destroyed (192) 192 Prototype IDs (24) 480 Alien Tech Used (0) 0 Bonus (300) 300 TOTAL SCORE: 3407 Bonus ------- Aligned with FarCom 300 Cogmind --------- Core Integrity 0/550 Matter 300/300 Energy 100/100 System Corruption 4% Temperature Cool (9) Movement Core (50) Location -8/Materials Parts ------- > --- POWER (1) -------- (None) > --- PROPULSION (4) --- (None) > --- UTILITY (4) ------ Modified TNC Hacking Suite > --- WEAPON (2) ------- (None) > --- INVENTORY (4) ---- Deuterium Engine Thermal Generator Minigun Peak State ------------ > --- POWER ------------ Cooled Ion Engine > --- PROPULSION ------- Carbon-fiber Leg Carbon-fiber Leg Carbon-fiber Leg Carbon-fiber Leg > --- UTILITY ---------- Small Storage Unit Sensor Array > --- WEAPON ----------- Shock Rifle Heavy Assault Rifle > --- INVENTORY -------- Ion Engine Large Matter Pod Field Recycling Unit Shock Rifle Heavy Assault Rifle Rocket Launcher [Rating: 23] Favorites ----------- Power Ion Engine Engine Ion Engine Propulsion Aluminum Leg Treads Advanced Treads Leg Aluminum Leg Utility Sensor Array Device Sensor Array Storage Small Storage Unit Processor Modified TNC Hackware Hacking Suite Protection Improved Power Shielding Weapon Heavy Assault Rifle Energy Gun Medium Laser Ballistic Gun Heavy Assault Rifle Launcher Rocket Launcher Build | -11 -10 -10 -9 -9 -9 -8 -8 ------- Run | Scr Mat Min Mat Min Exi Min Mat Slots Evolved 4 | . . . 2 . . . 2 Power . | . . . . . . . . Propulsion 2 | . . . 2 . . . . Utility 2 | . . . . . . . 2 Weapon . | . . . . . . . . Parts Attached 38 | 6 3 2 16 2 2 . 7 Power 7 | 1 1 . 4 . . . 1 Engine 7 | 1 1 . 4 . . . 1 Core . | . . . . . . . . Reactor . | . . . . . . . . Propulsion 11 | 2 . 1 7 . . . 1 Treads 1 | . . . . . . . 1 Leg 10 | 2 . 1 7 . . . . Wheel . | . . . . . . . . Hover . | . . . . . . . . Flight . | . . . . . . . . Utility 10 | 1 1 . . 1 2 . 5 Device 4 | . 1 . . 1 1 . 1 Storage 2 | 1 . . . . . . 1 Processor 1 | . . . . . 1 . . Hackware 1 | . . . . . . . 1 Protection 2 | . . . . . . . 2 Artifact . | . . . . . . . . Weapon 10 | 2 1 1 5 1 . . . Energy Gun 4 | 2 . . 2 . . . . Energy Cannon . | . . . . . . . . Ballistic Gun 5 | . 1 . 3 1 . . . Ballistic Cannon . | . . . . . . . . Launcher 1 | . . 1 . . . . . Special Weapon . | . . . . . . . . Impact Weapon . | . . . . . . . . Slashing Weapon . | . . . . . . . . Piercing Weapon . | . . . . . . . . Special Melee Weapon . | . . . . . . . . Unidentified Prototypes 2 | . . . 1 . 1 . . Parts Lost 11 | . 1 . 2 6 . . 2 Power 1 | . . . 1 . . . . Propulsion 5 | . . . . 4 . . 1 Utility 2 | . . . . 1 . . 1 Weapon 3 | . 1 . 1 1 . . . Highest Loss Streak 6 | . 1 . 1 6 . . 2 Average Slot Usage (%) 62 | . 87 100 99 70 3 22 35 Engine 7 | . 14 14 10 8 . . 2 Leg 21 | . 28 28 44 31 . . . Device 7 | . 2 14 11 6 1 11 6 Storage 7 | . 14 14 11 8 . . . Processor 2 | . . . . . 1 11 9 Hackware 1 | . . . . . . . 8 Energy Gun 4 | . 21 1 2 6 . . . Ballistic Gun 7 | . 6 14 17 9 . . . Launcher 1 | . . 12 1 . . . . Naked Turns 347 | . . . . 51 296 . . Heaviest Build 19 | 10 14 16 19 19 1 1 15 Greatest Support 60 | 20 20 20 60 60 3 3 22 Greatest Overweight (x) 4 | 1 . . . . . . 4 Average Overweight (x) . | . . . . . . . . Largest Inventory Capacity 6 | 6 6 6 6 6 4 4 4 Average Capacity 5 | 4 6 6 6 5 4 4 4 Most Carried 6 | 4 6 6 6 6 4 3 4 Average Carried 4 | 2 4 5 5 5 3 3 3 Final Capacity 6 | 6 6 6 6 4 4 4 4 Final Carried 6 | 2 6 6 6 4 3 3 3 Class Distribution -------------------- 87% | Mutant 12% | Scout Dominant Class ---------------- Mutant | -10/Materials Mutant | -10/Mines Mutant | -9/Materials Mutant | -9/Mines Mutant | -9/Exiles Scout | -8/Mines Mutant | -8/Materials Resources | -11 -10 -10 -9 -9 -9 -8 -8 ----------- Run | Scr Mat Min Mat Min Exi Min Mat Matter Collected 717 | 201 110 83 229 81 . . 13 Remotely . | . . . . . . . . Salvage Created 240 | . 110 . 109 1 . . 20 Parts 20 | . 7 . 12 . . . 1 Haulers Intercepted . | . . . . . . . . Recyclers Shooed . | . . . . . . . . Parts Field Recycled . | . . . . . . . . Retrieved Matter . | . . . . . . . . Parts Self-Destructed . | . . . . . . . . Prevented . | . . . . . . . . Kills | -11 -10 -10 -9 -9 -9 -8 -8 ------- Run | Scr Mat Min Mat Min Exi Min Mat Combat Hostiles Destroyed 7 | . 3 . 2 1 . . 1 Melee 1 | . . . . . . . 1 Guns 6 | . 3 . 2 1 . . . Classes Destroyed 5 | . 1 . 2 1 . . 1 Worker 1 | . . . 1 . . . . Swarmer 1 | . . . . . . . 1 Grunt 4 | . 3 . 1 . . . . Sentry 1 | . . . 1 . . . . Assembled 1 | . . . . 1 . . . Best Kill Streak 3 | . 3 . 2 1 . . 1 Combat Bots Only 3 | . 3 . 1 1 . . 1 Max Kills in Single Turn 1 | . 1 . 1 1 . . 1 Gunslinging . | . . . . . . . . Exploded . | . . . . . . . . Melee 1 | . . . . . . . 1 Uniques/NPCs Destroyed . | . . . . . . . . Combat | -11 -10 -10 -9 -9 -9 -8 -8 -------- Run | Scr Mat Min Mat Min Exi Min Mat Damage Taken 2637 | . 145 . 402 1040 . . 1050 Core 872 | . 35 . 69 217 . . 551 Absorbed by Shields . | . . . . . . . . Core Remaining (%) 71 | 100 . 86 . . . 28 . Volleys Fired 38 | . 11 . 21 6 . . . Largest 2 | . 2 . 2 2 . . . Hottest 90 | . 90 . 73 73 . . . Shots Fired 73 | . 22 . 41 10 . . . Gun 73 | . 22 . 41 10 . . . Cannon . | . . . . . . . . Launcher . | . . . . . . . . Special . | . . . . . . . . Kinetic 49 | . 3 . 39 7 . . . Thermal 19 | . 19 . . . . . . Explosive . | . . . . . . . . Electromagnetic 5 | . . . 2 3 . . . Robot Hit Streak 6 | . 5 . 6 2 . . . Robot Miss Streak 5 | . 1 . 2 5 . . . Penetration Max . | . . . . . . . . Secondary Targets 1 | . . . . 1 . . . Max Gunslinging Chain 1 | . . . . 1 . . . Shots Hit Robots 48 | . 14 . 30 4 . . . Core Hits 17 | . 6 . 5 2 . . 4 Critical Hits . | . . . . . . . . Critical Kills . | . . . . . . . . Critical Parts Destroyed . | . . . . . . . . Melee Attacks . | . . . . . . . . Impact . | . . . . . . . . Slashing . | . . . . . . . . Piercing . | . . . . . . . . Sneak Attacks . | . . . . . . . . Combat Hostiles . | . . . . . . . . Follow-up Attacks . | . . . . . . . . Damage Inflicted 433 | . 144 . 245 32 . . 12 Guns 421 | . 144 . 245 32 . . . Cannons . | . . . . . . . . Explosions . | . . . . . . . . Melee . | . . . . . . . . Ramming 12 | . . . . . . . 12 Kinetic 291 | . 14 . 245 32 . . . Thermal 130 | . 130 . . . . . . Explosive . | . . . . . . . . Electromagnetic . | . . . . . . . . Impact . | . . . . . . . . Slashing . | . . . . . . . . Piercing . | . . . . . . . . Highest Corruption 10 | . . . 5 10 10 10 4 Average Corruption 8 | . . . 5 6 10 10 3 Corruption Purged . | . . . . . . . . Effects 30 | . . . 1 7 13 7 2 Message Errors 6 | . . . . 1 2 2 1 Matter Fused 6 | . . . . 2 3 1 . Heat Flow Errors 5 | . . . . 1 2 2 . Energy Discharges 1 | . . . . . . 1 . Data Loss (minor) 4 | . . . 1 1 1 . 1 Data Loss (major) 1 | . . . . . 1 . . Misdirections 5 | . . . . . 4 1 . Targeting Errors 2 | . . . . 2 . . . Overload Shots . | . . . . . . . . Overflow Damage . | . . . . . . . . Projectiles . | . . . . . . . . Explosions . | . . . . . . . . Melee . | . . . . . . . . Knockbacks . | . . . . . . . . Impact . | . . . . . . . . Kinetic . | . . . . . . . . Secondary . | . . . . . . . . Self-Inflicted Damage 5 | . . . . . . . 5 Shots . | . . . . . . . . Rammed 9 | . . . . . . . 9 Targets Rammed 9 | . . . . . . . 9 Kicked . | . . . . . . . . Crushed . | . . . . . . . . Highest Temperature 312 | . 312 . 6 151 166 250 . Average Temperature 120 | . 148 . 4 86 82 115 . Received Heat Transfer 525 | . 78 . 150 . . . 297 Siege Activations . | . . . . . . . . Robots Corrupted . | . . . . . . . . Combat Hostiles . | . . . . . . . . Parts Fried . | . . . . . . . . Impact Corruptions . | . . . . . . . . Robots Melted . | . . . . . . . . Combat Hostiles . | . . . . . . . . Parts Melted . | . . . . . . . . Heat Transferred 347 | . 347 . . . . . . Parts Sabotaged . | . . . . . . . . Parts Stolen . | . . . . . . . . Parts Stripped . | . . . . . . . . Power Chain Reactions . | . . . . . . . . Missiles Intercepted . | . . . . . . . . Alert | -11 -10 -10 -9 -9 -9 -8 -8 ------- Run | Scr Mat Min Mat Min Exi Min Mat Peak Influence 202 | . 90 34 123 35 . . 202 Initial 34 | . . 34 13 5 . . . Average 33 | . 34 34 47 10 . . 46 Maximum Alert Level 1 | . . . . . . . 1 Low Security (%) 99 | 100 100 100 100 100 . 100 98 Level 1 . | . . . . . . . 1 Level 2 . | . . . . . . . . Level 3 . | . . . . . . . . Level 4 . | . . . . . . . . Level 5 . | . . . . . . . . High Security . | . . . . . . . . Max Security . | . . . . . . . . Squads Dispatched 4 | . 3 . . . . . 1 Investigation 1 | . 1 . . . . . . Extermination . | . . . . . . . . Reinforcement 3 | . 2 . . . . . 1 Assault . | . . . . . . . . Garrison . | . . . . . . . . Intercept . | . . . . . . . . Construction Impeded . | . . . . . . . . Haulers Reinforced . | . . . . . . . . Stealth | -11 -10 -10 -9 -9 -9 -8 -8 --------- Run | Scr Mat Min Mat Min Exi Min Mat Distress Signals 2 | . . . 2 . . . . Communications Jammed . | . . . . . . . . Distress Signals . | . . . . . . . . Times Spotted 54 | . 7 . 7 20 . . 20 Peak Tracking Total 15 | . 3 . 2 15 . . 11 Tactical Retreats 7 | . . . 2 2 . . 3 Traps | -11 -10 -10 -9 -9 -9 -8 -8 ------- Run | Scr Mat Min Mat Min Exi Min Mat Traps Triggered 4 | . 1 . . . . . 3 Indirectly . | . . . . . . . . Trap Hack Attempts . | . . . . . . . . Triggered . | . . . . . . . . Disarmed . | . . . . . . . . Reprogrammed . | . . . . . . . . Reused . | . . . . . . . . Traps Extracted . | . . . . . . . . Installed . | . . . . . . . . Triggered . | . . . . . . . . Machines | -11 -10 -10 -9 -9 -9 -8 -8 ---------- Run | Scr Mat Min Mat Min Exi Min Mat Machines Disabled . | . . . . . . . . Max in Single Turn . | . . . . . . . . Machines Sabotaged . | . . . . . . . . Garrisons Compromised . | . . . . . . . . Overloaded Fab Kills . | . . . . . . . . Fab Network Shutdowns . | . . . . . . . . Hacking | -11 -10 -10 -9 -9 -9 -8 -8 --------- Run | Scr Mat Min Mat Min Exi Min Mat Machines Accessed 9 | . . . 1 . 5 . 3 Terminals 4 | . . . 1 . . . 3 Fabricators . | . . . . . . . . Repair Stations . | . . . . . . . . Recycling Units . | . . . . . . . . Scanalyzers . | . . . . . . . . Garrison Access . | . . . . . . . . Total Hacks 60 | . . . 4 . 50 . 6 Successful 55 | . . . 1 . 50 . 4 Failed 5 | . . . 3 . . . 2 Catastrophic . | . . . . . . . . Database Lockouts . | . . . . . . . . Manual 1 | . . . . . 1 . . Terminals 10 | . . . 4 . . . 6 Fabricators . | . . . . . . . . Repair Stations . | . . . . . . . . Recycling Units . | . . . . . . . . Scanalyzers . | . . . . . . . . Garrison Access . | . . . . . . . . Terminal Hacks 55 | . . . 1 . 50 . 4 Record 50 | . . . . . 49 . 1 Branch Access Points 1 | . . . . . . . 1 Locate Traps 1 | . . . . . . . 1 Recall Investigation 1 | . . . 1 . . . . Zone Layout 1 | . . . . . . . 1 EX-Prototype ID Bank 1 | . . . . . 1 . . Fabricator Hacks . | . . . . . . . . Repair Station Hacks . | . . . . . . . . Recycling Unit Hacks . | . . . . . . . . Scanalyzer . | . . . . . . . . Garrison Access Hacks . | . . . . . . . . Unauthorized Hacks . | . . . . . . . . Terminals . | . . . . . . . . Fabricators . | . . . . . . . . Repair Stations . | . . . . . . . . Recycling Units . | . . . . . . . . Scanalyzers . | . . . . . . . . Garrison Access . | . . . . . . . . Data Cores Recovered . | . . . . . . . . Used . | . . . . . . . . Hacking Detections 2 | . . . 1 . . . 1 Full Trace Events . | . . . . . . . . Feedback Events . | . . . . . . . . Feedback Blocked . | . . . . . . . . Robot Schematics Acquired . | . . . . . . . . Robots Built . | . . . . . . . . Matter . | . . . . . . . . Time . | . . . . . . . . Total Robot Build Rating . | . . . . . . . . Part Schematics Acquired . | . . . . . . . . Parts Built . | . . . . . . . . Matter . | . . . . . . . . Time . | . . . . . . . . Total Part Build Rating . | . . . . . . . . Parts Repaired . | . . . . . . . . Time . | . . . . . . . . Parts Recycled . | . . . . . . . . Recycled Matter . | . . . . . . . . Retrieved Matter . | . . . . . . . . Retrieved Components . | . . . . . . . . Parts Scanalyzed . | . . . . . . . . Part Schematics Acquired . | . . . . . . . . Parts Damaged . | . . . . . . . . Bothacking | -11 -10 -10 -9 -9 -9 -8 -8 ------------ Run | Scr Mat Min Mat Min Exi Min Mat Used RIF Installer . | . . . . . . . . Robots Hacked . | . . . . . . . . Non-combat . | . . . . . . . . Combat . | . . . . . . . . Robot Hacks Applied . | . . . . . . . . Relay Couplers Released . | . . . . . . . . Robots Rewired . | . . . . . . . . Allies Hacked . | . . . . . . . . Hacks Repelled . | . . . . . . . . Allies | -11 -10 -10 -9 -9 -9 -8 -8 -------- Run | Scr Mat Min Mat Min Exi Min Mat Total Allies . | . . . . . . . . Largest Group . | . . . . . . . . Highest-Rated Group . | . . . . . . . . Highest-Rated Ally . | . . . . . . . . Total Orders . | . . . . . . . . Ally Attacks . | . . . . . . . . Total Damage . | . . . . . . . . Kills . | . . . . . . . . Allies Corrupted . | . . . . . . . . Allies Melted . | . . . . . . . . Intel | -11 -10 -10 -9 -9 -9 -8 -8 ------- Run | Scr Mat Min Mat Min Exi Min Mat Robot Analysis Total . | . . . . . . . . Derelict Logs Recovered 3 | . . 2 . 1 . . . Drone Launches . | . . . . . . . . Drone Recoveries . | . . . . . . . . Exploration | -11 -10 -10 -9 -9 -9 -8 -8 ------------- Run | Scr Mat Min Mat Min Exi Min Mat Turns Passed 2050 | 58 269 214 509 194 348 165 293 Spaces Moved 2113 | 44 140 173 326 201 685 199 345 Core 1314 | 26 . . . 102 685 199 302 Treads 43 | . . . . . . . 43 Legs 756 | 18 140 173 326 99 . . . Wheels . | . . . . . . . . Hover . | . . . . . . . . Flight . | . . . . . . . . Fastest Speed 50 | 50 120 120 120 50 50 50 50 Average Speed 77 | 82 120 120 120 84 50 50 63 Slowest Speed 250 | 120 120 120 120 120 50 50 250 Overloaded Moves . | . . . . . . . . Propulsion Burnouts . | . . . . . . . . Robots Hopped . | . . . . . . . . Cave-ins Triggered . | . . . . . . . . Exploration Rate (%) 39 | 3 26 57 29 44 94 30 33 Regions Visited 7 Branch Regions 4 Pre-discovered Areas 1 | . . . . . 1 . . Known Exits Taken 1 | . . . . . . 1 . Unknown Exits Taken 6 | 1 1 1 1 1 1 . . Scrap Searched 4 | . . 2 . 2 . . . Spaces Dug . | . . . . . . . . Terrain Destroyed . | . . . . . . . . Melee . | . . . . . . . . Projectile . | . . . . . . . . AOE . | . . . . . . . . Terrain Rammed . | . . . . . . . . Walls Destroyed . | . . . . . . . . Machines Disabled . | . . . . . . . . Actions | -11 -10 -10 -9 -9 -9 -8 -8 --------- Run | Scr Mat Min Mat Min Exi Min Mat Total 2446 | 64 219 179 405 217 690 263 409 Wait 194 | 10 57 3 23 1 . 65 35 Move 2106 | 43 139 172 325 200 684 198 345 Hop . | . . . . . . . . Pick Up 30 | 5 7 1 9 1 2 . 5 Fast Attach 9 | 3 1 . 2 . 1 . 2 Attach 16 | 3 1 . 5 1 1 . 5 Detach 4 | . . . . 1 . . 3 Swap 13 | . 1 2 9 1 . . . Drop 27 | . 2 1 11 6 2 . 5 Fire 38 | . 11 . 21 6 . . . Melee . | . . . . . . . . Ram 9 | . . . . . . . 9 Kick . | . . . . . . . . Crush . | . . . . . . . . Escape Stasis . | . . . . . . . . Rewire . | . . . . . . . . Trap . | . . . . . . . . Miscellaneous . | . . . . . . . . Route ------- -11/Scrapyard -10/Materials -10/Mines -9/Materials -9/Mines (discovered 2 exits: Mat / *Exi) -9/Exiles (discovered 2 exits: [*Min x2]) -8/Mines -8/Materials History --------- Turn | Location | Event 19 | -11/Scrapyard | Discovered new exit (range 16) 59 | -11/Scrapyard | Entered Materials 293 | -10/Materials | Discovered new exit (range 16) 313 | -10/Materials | Build established: Mutant 328 | -10/Materials | Entered Mines 335 | -10/Mines | Received a Rocket Launcher from a helpful Derelict 336 | -10/Mines | Learned Materials interactive machine intel 375 | -10/Mines | Learned Materials trap positions 534 | -10/Mines | Discovered new exit (range 5) 542 | -10/Mines | Entered Materials 542 | -9/Materials | Evolved 2 slots: Propulsion x2 543 | -9/Materials | Loaded intel: 23 trap records 544 | -9/Materials | Loaded intel: 18 interactive machine locations 1014 | -9/Materials | Discovered new exit (range 11) 1051 | -9/Materials | Entered Mines 1126 | -9/Mines | Assembled infested the area 1131 | -9/Mines | Assisted by a Guerilla fighting off Assembled 1170 | -9/Mines | System corruption reached 10% 1181 | -9/Mines | Core integrity fell below 50% 1222 | -9/Mines | Lost 6 parts (4n1u1w) 1226 | -9/Mines | Identified exit to Materials 1241 | -9/Mines | Deemed a non-threat by the Exiles lab entrance 1242 | -9/Mines | Discovered new exit (range 5) 1245 | -9/Mines | Entered Exiles 1264 | -9/Exiles | Discovered new exit (range 14) 1284 | -9/Exiles | Met 8R-AWN 1292 | -9/Exiles | Met EX-HEX 1324 | -9/Exiles | Met EX-DEC 1336 | -9/Exiles | Learned location of Zion (-7) 1361 | -9/Exiles | Discovered new exit (range 12) 1412 | -9/Exiles | Visited The Gauntlet 1490 | -9/Exiles | Met EX-BIN 1526 | -9/Exiles | Aligned with FarCom system 1526 | -9/Exiles | Given EX-Vault access code 1538 | -9/Exiles | Opened EX-Vault 1541 | -9/Exiles | Found Prototype Processor 1541 | -9/Exiles | Identified Modified TNC 1556 | -9/Exiles | Warned to stay clear of 0b10 Research branches 1593 | -9/Exiles | Left Exiles lab with Modified TNC 1593 | -9/Exiles | Entered Mines 1683 | -8/Mines | Discovered exit to Materials (range 7) 1758 | -8/Mines | Entered Materials 1758 | -8/Materials | Evolved 2 slots: Utility x2 2038 | -8/Materials | Core integrity fell below 50% 2046 | -8/Materials | Core integrity fell below 20% 2051 | -8/Materials | Destroyed by Y-45 Defender with Beam Rifle Last Messages --------------- 01986_ K-01 Serf cleans the Fusion Modulator. 01993_ O-24 Administrator: "IFF HANDSHAKE FAILED. SECURING TERMINAL." 02000_ Adv. Treads destroyed. 02002_ Connecting with Terminal... >>Access(Branch) No branch access points found. 02004_ ALERT: Hostiles spotted, dispatching reinforcements to Terminal M005. 02010_ Triggered Shock Trap. 02010_ The floor emits a surge of raw power. 02010_ System corrupted (+2). 02012_ Triggered Shock Trap. 02012_ The floor emits a surge of raw power. 02012_ System corrupted (+1). 02013_ System corrupted: Component data lost. 02015_ Triggered Shock Trap. 02015_ The floor emits a surge of raw power. 02015_ System corrupted (+1). 02027_ Acquired Minigun. 02038_ <=O0GC JR:&JGFXZ 1YJMR&FIDWKWATCI8GM Map ----- +----------------------------------------------------+ | ?????????????????????????????????????????????????? | | ?????????????????????????????????????????????????? | | ?????????????????????????????????????????????????? | | ??????######?????????????####????????????????????? | | ??????# % #########????? T #????????????????????? | | ??????# ## #????? +????????????????????? | | ???? # ## """" #???"" w#????????????????????? | | ??""" # / ## """" #? """ s ?????????????????????? | | """ # !## """" #? sss?????????????????????? | | """ #? ?# !! #??""" g??????????????????????? | | #? ?# """" #??"""g ??????????????????????? | | ? ###+### """ #???"" ???????????????????????? | | ###+### # """ #??? ???????????????????????? | | # =%#####+##??????????????????????? | | + """" w #??????????????????????? | | # """" #### #??????????????????????? | | #+##### ! # """" #??# #??????????????????????? | | !### ## #??# #??????????????????????? | | #?# #########??# #??????????????????????? | | """ #?# # #??????# #??????????????????????? | | """ #?# #??????# #??????????????????????? | | """ #?# # #??????# #??????????????????????? | | """ #?# ##########?# #??????????????????????? | | """ #?# #### #?# #??######??????????????? | | #?# #?# #?? ??????????????? | | ###+#??# ! #?# @#? """ ??????????????? | | ??# #??# #?# #? """ #?????????????? | | ??# #??## ##### #?# # """ #?????????????? | | ??# #???# #???## ##?# # #?????????????? | | ### #####/###### #??# + = ! Y#????????????? | | ## # #??# # !! #?????????????? | | ### ## !! + #??# # ! #?????????????? | | ??# ## ! # #??# #? #?????????????? | | ??# ##! ! # #??# ##########?????????????? | | ??# ######+##### ####Y # ! #???????????????? | | ### #???# # #???????????????? | | !## ##??# ^ ^ ^ # #???????????????? | | # #??# ^ # """ #???????????????? | | # ########### / + """ #???????????????? | | # ## """ # [=[ g # """ #???????????????? | | *+ ## "R" # ^^=[ Y ########???????????????? | | # ## " " # [=[ #??????????????????????? | | ## ## #/ * [ #??????????????????????? | | ## ## # g #??????????????????????? | | # # """ # ! #??????????????????????? | | # # """ + #### ########???????????????? | | + T # """ # ???# # #???????????????? | | # # # ???# # """ #???????????????? | | # ########## ?### + """ #???????????????? | | ## ##?# ?#"" # """ #???????????????? | +----------------------------------------------------+ Best States ------------- Heat Dissipation 31 Energy Generation 14 Energy Capacity 280 Matter Stores 300 Matter Capacity 300 Sight Range 16 Robot Scan Range 10 Terrain Scan Range 16 Terrain Scan Density 10 Armor Coverage 600 Power Shielding 66 Evasion (%) 50 Recoil Reduction 1 Offensive Hacking 10 Item Schematics ----------------- None Robot Schematics ------------------ None Fabricated ------------ Nothing Alien Tech Used ----------------- None Achievements -------------- Fist Fight Challenges ------------ None Game ------ Seed ThunderSurgeCasing Manual? 0 Play Time 01:03:20 Cumulative 14.3 hours Start 2021.12.13 @ 03:22:02 End 2021.12.14 @ 00:22:49 Sessions 3 Manual Loads 0 Difficulty Rogue Special Mode None Game No. 20 Rogue 20 Adventurer 0 Explorer 0 Win Type - Total 0 Types 0/0/0/0/0/0/0/0/0 Lore% 11 Gallery% 18 Achievement% 14 Wizard Run 0 Options --------- ASCII 0 Keyboard 0 Movement Mouse Keybinds 0 Fullscreen 1 Font 18/SmallcapsGlow Map View 76x50 Tactical HUD 1 Map Filters NONE Filters NONE Steam 1 RUN: 03f404ab-3e89-4bda-879b-bbeff14e0cdc